[Event "Sardinia World Festival-A 2024"]
[Site "Orosei"]
[Date "2024.04.30"]
[Round "5.25"]
[White "Degraeve, Remy"]
[Black "Lohia, Sohum"]
[Result "1-0"]
[ECO "E05"]
[WhiteElo "2432"]
[BlackElo "2316"]
[Annotator "TA"]
[PlyCount "157"]
[EventDate "2024.04.26"]
[EventType "swiss"]
[EventCountry "ITA"]
[SourceTitle "playchess.com"]
[Source "ChessBase"]
[SourceQuality "1"]
[TimeControl "40/5400+30:1800+30"]

{[%evp 38,157,218,206,239,238,300,309,312,245,262,265,264,266,254,253,333,325,332,269,367,290,360,290,384,284,352,201,352,212,264,264,397,354,404,261,261,261,254,261,261,251,260,241,239,249,249,249,270,264,264,264,281,197,266,275,274,279,256,297,305,290,263,263,227,212,212,212,334,312,312,305,305,305,297,212,297,297,283,182,308,308,308,212,293,182,182,182,182,182,360,355,445,360,1733,1493,5840,5810,29962,29968,29967,29970,29970,29971,29970,29972,29972,29973,29973,29974,29974,29975,29975,29976,29976,29977,29978,29978,29985,29986,29986,29987]} 1. c4 {[%emt 0:02:01]} Nf6 {[%emt 0:00:17]} 2. Nf3 {[%emt 0:00:04]} e6 {[%emt 0:00:18]} 3. g3 {[%emt 0:00:04]} d5 {[%emt 0:00:15]} 4. Bg2 {[%emt 0:00:04]} Be7 {[%emt 0:00:13]} 5. O-O {[%emt 0:00:07]} O-O {[%emt 0:00:12]} 6. d4 {[%emt 0:00:59]} dxc4 {[%emt 0:00:11]} 7. Qc2 {[%emt 0:00:24]} b5 {[%emt 0:01:02]} 8. a4 {[%emt 0:00:23] E05: Open Catalan: 5 Nf3 Be7.} b4 {[%emt 0:00:15]} 9. Nfd2 {[%emt 0:00:27]} Nd5 {[%emt 0:00:47]} 10. Nxc4 {[%emt 0:00:11]} c5 {[%emt 0:01:18]} 11. dxc5 {[%emt 0:00:09]} Bxc5 {[%emt 0:00:28]} 12. e4 {[%emt 0:00:35]} Nb6 {[%emt 0:00:44]} 13. Ncd2 {[%emt 0:00:36]} N8d7 {[%emt 0:01:33]} 14. a5 {[%emt 0:00:11]} Ba6 {[%emt 0:00:34]} 15. axb6 {[%emt 0:00:27]} Rc8 {[%emt 0:01:38]} 16. Qd1 {[%emt 0:00:07]} Qxb6 {[%emt 0:09:58]} 17. Nb3 {[%emt 0:01:36]} Bxf1 {[%emt 0:05:47]} 18. Qxf1 {[%emt 0:00:04]} Be7 $146 {[%emt 0:05:00]} ({Predecessor:} 18... h6 19. N1d2 Rfd8 20. Nf3 Nf6 21. Ne1 a5 22. Bf3 Ra8 23. Nxc5 Qxc5 24. Be3 Qe5 {1-0 Maghsoodloo,P (2721)-Wang,H (2722) Shusha Blitz 2022 (14)}) 19. Be3 {[%emt 0:10:46]} Nc5 {[%emt 0:01:03]} 20. N1d2 {[%emt 0:05:31]} Qb8 {[%emt 0:21:05]} 21. Nd4 {[%emt 0:08:03]} Bf6 {[%emt 0:05:17]} 22. e5 {[%emt 0:08:46]} Qxe5 {[%emt 0:02:47]} 23. Nc6 {[%emt 0:00:46]} Qxb2 {[%emt 0:17:43]} 24. Rb1 {[%emt 0:00:29]} (24. Rxa7 Rxc6 25. Bxc6 Bd4 $18) 24... Qa2 {[%emt 0:06:45]} 25. Bxc5 {[%emt 0:00:07]} Qxd2 {[%emt 0:01:08]} 26. Bxb4 {[%emt 0:01:15]} Qa2 {[%emt 0:01:01]} 27. Bxf8 {[%emt 0:00:08]} Rxf8 {[%emt 0:02:24]} 28. Qb5 {[%emt 0:00:30]} h5 {[%emt 0:03:12]} 29. h4 {[%emt 0:00:13]} g6 {[%emt 0:00:45]} 30. Bf3 {[%emt 0:00:29]} Kg7 {[%emt 0:00:58]} 31. Rb4 {[%emt 0:00:24]} a6 {[%emt 0:01:11]} 32. Qc5 {[%emt 0:00:32]} (32. Qd3 $142) 32... a5 $2 {[%emt 0:03:01]} (32... Qa3 {might work better.}) 33. Nxa5 {[%emt 0:04:51]} (33. Qxa5 Qxa5 34. Nxa5 Bc3 $18) 33... Qa1+ {[%emt 0:01:01]} 34. Kg2 {[%emt 0:00:05]} Bc3 {[%emt 0:04:29]} (34... Qe5 {keeps fighting.} 35. Qb6 Bd8) 35. Rb5 $18 {[%emt 0:00:15]} Bd4 {[%emt 0:01:06]} 36. Qc4 {[%emt 0:00:20]} Qc3 {[%emt 0:00:19]} 37. Rb7 {[%emt 0:03:36]} Qxc4 {[%emt 0:01:51]} 38. Nxc4 {[%emt 0:00:04]} Rd8 {[%emt 0:00:36]} 39. Bc6 {[%emt 0:00:44]} Bf6 {[%emt 0:01:10]} 40. Bd7 {[%emt 0:01:11]} Kf8 {[%emt 0:00:29]} 41. Kf3 {[%emt 0:33:53]} Ra8 {[%emt 0:00:47]} 42. Bc6 {[%emt 0:00:00]} Rd8 {[%emt 0:00:48]} 43. Nb6 {[%emt 0:00:00]} Kg7 {[%emt 0:02:27]} 44. Nd7 {[%emt 0:00:00]} Bd4 {[%emt 0:05:05]} 45. Rb4 {[%emt 0:00:00]} e5 {[%emt 0:05:04]} (45... Bc3 $142 46. Rb8 Rxb8 47. Nxb8 Bd4) 46. Rb7 $18 {[%emt 0:00:00]} Ra8 {[%emt 0:06:44]} 47. Bd5 {[%emt 0:00:00]} Ra5 {[%emt 0:05:19]} 48. Nf6 {[%emt 0:00:00]} Ra7 {[%emt 0:02:23]} 49. Ne8+ {[%emt 0:00:00]} Kf8 {[%emt 0:00:29]} 50. Rxa7 {[%emt 0:00:00]} Bxa7 {[%emt 0:00:01]} 51. Nd6 {[%emt 0:00:00]} f6 {[%emt 0:03:37]} 52. Ke2 {[%emt 0:00:00]} Bb6 {[%emt 0:01:34]} (52... Bb8 $142 53. Ne4 Ke7) 53. Nc4 {[%emt 0:00:00]} Bc5 {[%emt 0:00:22]} 54. Bc6 {[%emt 0:00:00]} Ke7 {[%emt 0:00:50]} 55. Ne3 {[%emt 0:00:00]} Kf7 {[%emt 0:00:50]} 56. Kd3 {[%emt 0:00:00]} Bb4 {[%emt 0:00:20]} (56... f5 $142 57. Ke2 Bf8) 57. Bd5+ $18 {[%emt 0:00:00]} Kg7 {[%emt 0:00:24]} 58. Bb3 {[%emt 0:00:12]} Be1 {[%emt 0:01:00]} (58... f5 {was called for.} 59. Ke2 Bc3) 59. Ke2 $18 {[%emt 0:00:03]} Bb4 {[%emt 0:00:21]} 60. Nd5 {[%emt 0:00:06]} Bd6 {[%emt 0:00:32]} 61. Kf3 {[%emt 0:00:15]} f5 {[%emt 0:00:45]} 62. Ba4 {[%emt 0:00:17]} Kf7 {[%emt 0:00:20]} 63. Bd7 {[%emt 0:00:17]} Bc5 $2 {[%emt 0:00:42]} (63... e4+ 64. Kg2 Ba3) 64. Nc7 $18 {[%emt 0:00:20]} e4+ {[%emt 0:00:33]} 65. Ke2 {[%emt 0:00:18]} Bb6 $2 {[%emt 0:00:57]} (65... Ba3 66. Be8+ Kg7) 66. Be8+ $18 {[%emt 0:01:55]} Kf8 {[%emt 0:00:27]} 67. Nd5 {[%emt 0:00:08]} Bxf2 {[%emt 0:00:17]} 68. Kxf2 {[%emt 0:00:03]} ({Weaker is} 68. Bxg6 Bxg3 69. Bxf5 Kf7 70. Bxe4 Ke6 $14) 68... Kxe8 {[%emt 0:00:09]} 69. Ke3 {[%emt 0:00:02]} Kf7 {[%emt 0:00:09]} 70. Kf4 {[%emt 0:00:03]} Ke6 {[%emt 0:00:12]} 71. Ne3 {[%emt 0:00:05]} Kf6 {[%emt 0:00:06]} 72. Ng2 {[%emt 0:00:06]} Kf7 {[%emt 0:01:16]} 73. Kg5 {[%emt 0:00:05]} Kg7 {[%emt 0:00:10]} 74. Nf4 {[%emt 0:00:03]} e3 {[%emt 0:00:07]} 75. Ne2 {[%emt 0:00:15]} (75. Nxg6 $2 {too greedy.} e2 76. Nf4 e1=Q $19 (76... e1=B 77. Nxh5+ Kh7 78. Kxf5 $18)) 75... Kf7 {[%emt 0:00:07]} 76. Kf4 {[%emt 0:00:09]} Kf6 {[%emt 0:00:08]} 77. Nd4 {[%emt 0:00:35]} g5+ {[%emt 0:00:30]} 78. hxg5+ {[%emt 0:00:05]} Kg6 {[%emt 0:00:05]} 79. Ne2 {[%emt 0:00:03]} (79. Kxe3 Kxg5 80. Kf2 Kg4 $16) 1-0

[Event "Sardinia World Festival-A 2024"]
[Site "Orosei"]
[Date "2024.04.30"]
[Round "5.26"]
[White "Aghayev, Miragha"]
[Black "Kanyamarala, Trisha"]
[Result "1/2-1/2"]
[ECO "B53"]
[WhiteElo "2424"]
[BlackElo "2285"]
[Annotator "TA"]
[PlyCount "63"]
[EventDate "2024.04.26"]
[EventType "swiss"]
[EventCountry "ITA"]
[SourceTitle "playchess.com"]
[Source "ChessBase"]
[SourceQuality "1"]
[TimeControl "40/5400+30:1800+30"]

{[%evp 9,63,6,21,19,17,0,12,7,8,-31,-14,-10,-19,-23,-18,-67,-72,-56,-18,-24,-16,-46,0,-4,26,18,29,0,0,0,0,-35,-34,-39,-45,-32,-7,-8,-6,-4,0,0,0,0,0,0,0,0,0,0,0,0,0,-67,-74,-64]} 1. e4 {[%emt 0:01:07]} c5 {[%emt 0:00:19]} 2. Nf3 {[%emt 0:01:29]} d6 {[%emt 0:00:12]} 3. d4 {[%emt 0:00:12]} cxd4 {[%emt 0:00:15]} 4. Qxd4 {[%emt 0:00:09]} Nc6 {[%emt 0:00:28]} 5. Qe3 {[%emt 0:00:07]} Nf6 {[%emt 0:00:52]} 6. Be2 {[%emt 0:00:25]} g6 {[%emt 0:01:23]} 7. h3 {[%emt 0:00:15]} Bg7 {[%emt 0:00:28]} 8. O-O {[%emt 0:00:09] The position is equal.} O-O {[%emt 0:01:29]} 9. c4 {[%emt 0:00:28]} Qb6 {[%emt 0:11:31]} 10. Qxb6 {[%emt 0:05:31]} axb6 {[%emt 0:00:05]} 11. Nc3 {[%emt 0:01:57]} Be6 {[%emt 0:03:19]} 12. Be3 {[%emt 0:05:46]} (12. Rd1 $11 {deserves consideration.}) 12... Nd7 $15 {[%emt 0:05:08][%cal Bf6d7,Bd7e5,Be5c6,Bc6d4][%mdl 32]} 13. Rfc1 {[%emt 0:07:11]} Na5 {[%emt 0:08:07]} 14. Nd2 {[%emt 0:03:07]} Rfc8 {[%emt 0:02:41][%cal Ra5c4]} 15. Nd1 {[%emt 0:05:27]} Ne5 {[%emt 0:06:02]} 16. b3 {[%emt 0:05:38]} Nec6 {[%emt 0:03:56]} 17. Rab1 {[%emt 0:03:56][%cal Ob3b4]} Nd4 {[%emt 0:01:15]} 18. Bf1 {[%emt 0:07:19]} Nac6 {[%emt 0:02:06]} 19. Nc3 {[%emt 0:06:11]} Nb4 {[%emt 0:03:34]} 20. Rb2 {[%emt 0:00:52] [#]} Nb5 $1 {[%emt 0:08:59]} 21. Ndb1 {[%emt 0:03:47]} Nxc3 {[%emt 0:06:42]} 22. Nxc3 {[%emt 0:00:57]} b5 {[%emt 0:05:43]} 23. a4 $1 {[%emt 0:12:09]} bxa4 {[%emt 0:16:31]} 24. bxa4 {[%emt 0:00:22]} Nc6 {[%emt 0:01:28][%cal Bb4c6,Bc6a5,Ba5b3,Bb3a1][%mdl 32]} 25. Rxb7 {[%emt 0:03:35]} Na5 $36 {[%emt 0:02:13][%csl LRb7,LRc4][%mdl 2048] Black has good play.} 26. Rxe7 {[%emt 0:02:12] [#] Threatens to win with Nb5.} Kf8 {[%emt 0:02:42]} 27. Ra7 {[%emt 0:02:04]} Rxa7 {[%emt 0:01:04]} 28. Bxa7 {[%emt 0:00:12]} Nb3 $1 {[%emt 0:00:27]} 29. Rc2 {[%emt 0:03:11] Nb5 would now be deadly.} Na1 $1 {[%emt 0:00:29]} 30. Rc1 {[%emt 0:01:52]} Nb3 {[%emt 0:00:18]} 31. Rb1 {[%emt 0:02:30]} (31. Rc2 $1 $11) 31... Nd2 {[%emt 0:00:27][%mdl 1024] Black has compensation.} 32. Rc1 {[%emt 0:00:16] Weighted Error Value: White=0.13 (very precise) /Black=0.06 (flawless) .  Mistake:       	White=2     	---        Inaccurate:     	White=4     	Black=3      OK:         	White=8     	Black=11     Best:        	White=2     	Black=2      Strong:       	White=1     	Black=2} 1/2-1/2

[Event "Sardinia World Festival-A 2024"]
[Site "Orosei"]
[Date "2024.04.30"]
[Round "5.27"]
[White "Haldorsen, Benjamin"]
[Black "Fava, Lorenzo"]
[Result "1-0"]
[ECO "B10"]
[WhiteElo "2419"]
[BlackElo "2279"]
[Annotator "TA"]
[PlyCount "117"]
[EventDate "2024.04.26"]
[EventType "swiss"]
[EventCountry "ITA"]
[SourceTitle "playchess.com"]
[Source "ChessBase"]
[SourceQuality "1"]
[TimeControl "40/5400+30:1800+30"]

{[%evp 18,117,21,20,39,-8,-18,-16,-1,-10,-9,-13,-1,-27,15,15,11,4,16,27,21,27,13,23,28,25,23,23,37,37,32,32,37,33,39,31,23,26,43,45,78,78,78,78,119,78,140,139,140,78,78,78,142,98,152,78,78,78,78,78,78,38,38,38,153,153,145,131,203,198,214,194,220,214,193,185,317,253,344,344,333,301,964,895,818,822,3329,2545,1491,1524,29979,29980,29980,29981,29981,29982,29982,2705,29983,29984,29989,29990]} 1. e4 {[%emt 0:03:33]} c6 {[%emt 0:00:09]} 2. Nf3 {[%emt 0:00:38]} d5 {[%emt 0:00:08]} 3. d3 {[%emt 0:00:10]} g6 {[%emt 0:02:19]} 4. e5 {[%emt 0:00:38]} Bg7 {[%emt 0:01:23]} 5. h3 {[%emt 0:00:13]} c5 {[%emt 0:05:33]} 6. d4 $146 {[%emt 0:01:23] B10: Caro-Kann: 2 d3 and 2 c4.} ({Predecessor:} 6. Bf4 Nc6 7. Qe2 Qb6 8. c3 d4 9. g3 Bf5 10. Qd2 g5 11. Bxg5 Nxe5 12. Nxe5 Bxe5 {0-1 Janik,I (2470)-Socko,B (2601) Katowice POL-HUN rapid 8th 2020 (7.1)}) 6... cxd4 {[%emt 0:03:37]} 7. Qxd4 {[%emt 0:00:27]} Nc6 {[%emt 0:00:11]} 8. Bb5 {[%emt 0:00:39]} e6 {[%emt 0:02:56]} 9. Bxc6+ {[%emt 0:07:16]} bxc6 {[%emt 0:00:43]} 10. O-O {[%emt 0:00:28]} Ne7 {[%emt 0:00:48]} 11. Nbd2 {[%emt 0:10:15]} (11. Qc3 $14) 11... Qb6 $11 {[%emt 0:02:41]} 12. Qa4 {[%emt 0:03:12]} Bd7 {[%emt 0:06:06]} 13. Nb3 {[%emt 0:03:05]} c5 {[%emt 0:01:30]} 14. Qa3 $1 {[%emt 0:00:21]} Rc8 {[%emt 0:05:25]} 15. Bd2 {[%emt 0:07:37]} Nc6 {[%emt 0:11:24]} 16. Nxc5 {[%emt 0:07:12]} Nxe5 {[%emt 0:00:33]} 17. Nxe5 {[%emt 0:04:02]} Bxe5 {[%emt 0:03:31]} 18. Bc3 {[%emt 0:12:50]} Qxc5 {[%emt 0:05:18]} 19. Qxc5 {[%emt 0:00:32]} (19. Bxe5 Qxa3 20. bxa3 O-O $17) 19... Rxc5 {[%emt 0:00:05]} 20. Bxe5 {[%emt 0:00:04]} Rg8 {[%emt 0:00:04]} 21. c3 {[%emt 0:00:08]} Ke7 {[%emt 0:00:39]} 22. f4 {[%emt 0:00:08]} Rgc8 {[%emt 0:00:46]} 23. Bd4 {[%emt 0:01:04]} R5c7 {[%emt 0:00:28]} 24. Rf2 {[%emt 0:00:26]} Rb7 {[%emt 0:00:19]} 25. b4 {[%emt 0:02:44]} Bb5 {[%emt 0:06:25]} 26. a4 {[%emt 0:00:17]} Bd3 {[%emt 0:01:14]} 27. Rd2 {[%emt 0:03:30]} Bc4 {[%emt 0:00:09]} 28. g4 {[%emt 0:02:23]} a6 {[%emt 0:02:50]} 29. g5 {[%emt 0:02:18]} Kd7 {[%emt 0:02:30]} 30. Kf2 {[%emt 0:00:50]} Kc6 {[%emt 0:01:15]} 31. Ke3 {[%emt 0:01:37]} Rd7 {[%emt 0:02:49]} (31... Kd7 $142 32. h4 Ke8) 32. Rb2 {[%emt 0:01:02]} Rb8 {[%emt 0:01:20] [#]} 33. h4 {[%emt 0:01:49]} (33. Rg2 $142 $1) 33... Re8 {[%emt 0:01:33]} 34. h5 {[%emt 0:00:49]} Rb8 {[%emt 0:00:45]} ({Better is} 34... Rb7 35. Rh2 Bb3) 35. Be5 {[%emt 0:02:17]} Rc8 {[%emt 0:00:44] [#]} (35... Rbb7 $142 36. Rf2 Bb3) 36. h6 {[%emt 0:02:00]} (36. b5+ $142 $1 axb5 37. axb5+ Bxb5 38. h6) 36... Rb7 $16 {[%emt 0:01:35]} 37. Bd4 {[%emt 0:00:34]} Kd7 {[%emt 0:00:36]} 38. Rbb1 {[%emt 0:00:36]} Re8 {[%emt 0:02:07]} 39. b5 {[%emt 0:04:09]} axb5 {[%emt 0:05:32]} 40. a5 {[%emt 0:03:02]} Ra8 {[%emt 0:01:14]} ({Black should try} 40... Kc6 $1 $14) 41. a6 $16 {[%emt 0:30:41]} Rc7 {[%emt 0:30:01]} 42. a7 {[%emt 0:01:52]} Rc6 {[%emt 0:03:38]} (42... Rb7 $16 43. Ra5 Rc7) 43. Be5 $18 {[%emt 0:00:49]} Ke7 {[%emt 0:02:04]} 44. Kd4 {[%emt 0:01:43]} Rb6 {[%emt 0:04:48]} 45. Kc5 {[%emt 0:09:38]} Rb7 {[%emt 0:00:41]} 46. Bb8 {[%emt 0:00:11]} d4 {[%emt 0:03:20]} (46... Rd7 $142 47. Rc1 Rd8) 47. cxd4 {[%emt 0:01:35]} f6 {[%emt 0:00:13]} 48. Ra6 {[%emt 0:00:00]} Rd7 {[%emt 0:00:00]} 49. Rc1 {[%emt 0:00:00]} Rb7 $2 {[%emt 0:00:00]} (49... fxg5 50. fxg5 Rd5+ 51. Kc6 Rxd4 52. Rxc4 Rxc4+ 53. Kb7 Rxa7+ 54. Rxa7 e5 55. Ka6+ (55. Bxe5 Ra4 $18) 55... Ke6 56. Rxh7 Rh4) 50. f5 $18 {[%emt 0:00:00]} fxg5 {[%emt 0:00:00]} 51. fxe6 {[%emt 0:00:00]} Raxb8 {[%emt 0:00:00]} 52. axb8=Q {[%emt 0:00:00]} ({Stronger than} 52. a8=B Rc7+ 53. Kb4 Rd8 $11 (53... Rcc8 54. Bg2 $14)) 52... Rxb8 {[%emt 0:00:00]} 53. d5 {[%emt 0:00:00]} Bd3 {[%emt 0:00:00]} 54. Ra7+ {[%emt 0:00:00]} Kf6 {[%emt 0:00:00]} 55. Rf7+ {[%emt 0:00:00]} Ke5 {[%emt 0:00:00]} 56. Re1+ {[%emt 0:00:00]} Be4 {[%emt 0:00:00]} 57. Rxe4+ {[%emt 0:00:00]} Kxe4 {[%emt 0:00:00]} 58. e7 {[%emt 0:00:00]} Re8 {[%emt 0:00:00]} 59. d6 {[%emt 0:07:13]} 1-0

[Event "Sardinia World Festival-A 2024"]
[Site "Orosei"]
[Date "2024.04.30"]
[Round "5.28"]
[White "Fiedorek, Michal"]
[Black "Yankelevich, Lev"]
[Result "1/2-1/2"]
[ECO "C79"]
[WhiteElo "2310"]
[BlackElo "2413"]
[Annotator "TA"]
[PlyCount "49"]
[EventDate "2024.04.26"]
[EventType "swiss"]
[EventCountry "ITA"]
[SourceTitle "playchess.com"]
[Source "ChessBase"]
[SourceQuality "1"]
[TimeControl "40/5400+30:1800+30"]

{[%evp 14,49,27,19,14,13,27,0,0,0,0,0,-8,0,0,0,12,0,11,0,44,2,24,25,34,37,49,56,59,60,94,48,47,0,99,0,53,0]} 1. e4 {[%emt 0:00:07]} e5 {[%emt 0:00:07]} 2. Nf3 {[%emt 0:00:41]} Nc6 {[%emt 0:00:10]} 3. Bb5 {[%emt 0:00:05]} Nf6 {[%emt 0:00:23]} 4. d3 {[%emt 0:00:44]} d6 {[%emt 0:00:10]} 5. O-O {[%emt 0:00:57]} a6 {[%emt 0:00:04]} 6. Bxc6+ {[%emt 0:02:03]} bxc6 {[%emt 0:00:04]} 7. d4 {[%emt 0:02:34]} exd4 {[%emt 0:00:08]} 8. Qxd4 {[%emt 0:00:42]} c5 {[%emt 0:04:01]} (8... Be7 {is interesting.} 9. e5 c5 10. Qf4 Nh5) 9. Qd3 {[%emt 0:03:10]} Be7 {[%emt 0:00:15]} 10. b3 {[%emt 0:02:30]} O-O {[%emt 0:00:56] The position is equal.} 11. Bb2 {[%emt 0:01:27]} a5 {[%emt 0:01:40]} 12. c4 {[%emt 0:09:00]} a4 {[%emt 0:00:43]} 13. Nc3 {[%emt 0:00:38]} axb3 {[%emt 0:01:37]} 14. axb3 {[%emt 0:00:16]} Rb8 {[%emt 0:00:11]} 15. Qc2 {[%emt 0:09:30]} Bd7 {[%emt 0:08:51]} 16. Rfe1 {[%emt 0:00:57]} Qc8 {[%emt 0:00:34]} 17. Re3 {[%emt 0:04:02]} Re8 {[%emt 0:01:33]} (17... Qb7 {is more complex.} 18. Qe2 Ng4 19. Nd5 Rbe8) 18. h3 {[%emt 0:01:27]} h6 {[%emt 0:18:25]} 19. Rae1 {[%emt 0:02:08]} Bf8 {[%emt 0:00:23]} 20. Ne2 {[%emt 0:07:46]} Nh7 {[%emt 0:03:50]} 21. Nf4 {[%emt 0:06:06]} Bc6 {[%emt 0:01:14]} 22. Nd5 {[%emt 0:05:01] White is more active.} (22. Nh4 $16) 22... Bd7 {[%emt 0:09:21]} 23. Nf4 {[%emt 0:04:11]} (23. Nd2 $14) 23... Bc6 $1 $16 {[%emt 0:01:14]} 24. Nd5 {[%emt 0:00:34]} (24. Nh4 $16) 24... Bd7 $14 {[%emt 0:00:08]} 25. Nf4 {[%emt 0:11:46] Weighted Error Value: White=0.19 (very precise) /Black=0.08 (flawless) .  Mistake:       	White=4     	---        Inaccurate:     	White=2     	Black=2      OK:         	White=6     	Black=6      Strong:       	---       	Black=1} ({White should play} 25. Qd1 $14) 1/2-1/2

[Event "Sardinia World Festival-A 2024"]
[Site "Orosei"]
[Date "2024.04.30"]
[Round "5.29"]
[White "Kanyamarala, Tarun"]
[Black "Lumachi, Gabriele"]
[Result "1/2-1/2"]
[ECO "A07"]
[WhiteElo "2293"]
[BlackElo "2413"]
[Annotator "TA"]
[PlyCount "57"]
[EventDate "2024.04.26"]
[EventType "swiss"]
[EventCountry "ITA"]
[SourceTitle "playchess.com"]
[Source "ChessBase"]
[SourceQuality "1"]
[TimeControl "40/5400+30:1800+30"]

{[%evp 9,57,19,20,21,8,0,12,-5,43,33,54,9,35,29,30,26,60,48,87,9,62,47,40,25,24,29,47,70,80,71,83,70,74,73,60,44,81,84,72,-10,0,-9,-7,-5,-4,-4,-4,-4,-4,-4]} 1. Nf3 {[%emt 0:00:07]} d5 {[%emt 0:00:34]} 2. g3 {[%emt 0:00:18]} Bg4 {[%emt 0:01:10]} 3. Bg2 {[%emt 0:00:13]} Nd7 {[%emt 0:00:04]} 4. h3 {[%emt 0:01:25]} Bh5 {[%emt 0:01:11]} 5. c4 {[%emt 0:05:08]} e6 {[%emt 0:00:11]} 6. cxd5 {[%emt 0:02:54]} exd5 {[%emt 0:00:06]} 7. O-O {[%emt 0:00:09]} c6 {[%emt 0:01:15]} 8. d3 {[%emt 0:00:26]} Bd6 {[%emt 0:03:45]} (8... Ngf6 $11 {is more appropriate.}) 9. e4 $14 {[%emt 0:02:30]} Ne7 {[%emt 0:00:56]} 10. Qc2 {[%emt 0:02:47]} Bxf3 {[%emt 0:17:02]} 11. Bxf3 {[%emt 0:00:11]} O-O {[%emt 0:00:06]} 12. Nc3 {[%emt 0:03:11]} Nb6 {[%emt 0:09:35]} 13. Bg2 {[%emt 0:06:09]} f5 {[%emt 0:13:57]} 14. exd5 {[%emt 0:11:13]} (14. f4 $16) 14... f4 {[%emt 0:02:43] Dodges Be3} (14... Nexd5 $11 15. Qb3 f4) 15. dxc6 {[%emt 0:10:56]} Nxc6 {[%emt 0:01:01]} 16. Bxc6 {[%emt 0:06:42]} bxc6 {[%emt 0:00:06]} 17. Ne4 {[%emt 0:00:22] Nxd6 is the strong threat.} Be5 {[%emt 0:10:28]} 18. Qxc6 {[%emt 0:07:58] [#] Strongly threatening Qe6+.} Kh8 {[%emt 0:00:49]} 19. gxf4 {[%emt 0:09:03]} Bxf4 {[%emt 0:01:51]} 20. Bxf4 {[%emt 0:01:25]} Rxf4 {[%emt 0:00:17]} 21. Rac1 {[%emt 0:07:56]} (21. Rae1 {looks sharper.} Qxd3 22. Ng5 Raf8 23. Ne6) 21... h6 {[%emt 0:02:30]} 22. Qd6 {[%emt 0:02:30]} Qxd6 {[%emt 0:09:13]} 23. Nxd6 {[%emt 0:00:10]} Rd8 {[%emt 0:00:03] [#]} 24. Nb5 {[%emt 0:08:01]} ({Better is} 24. Nc4 $1 $16) 24... Rxd3 $11 {[%emt 0:05:52] The position is equal.} 25. Rc3 {[%emt 0:01:14]} Rd2 {[%emt 0:05:31]} 26. Nxa7 {[%emt 0:00:43]} Rxb2 {[%emt 0:02:08]} 27. Rb3 {[%emt 0:00:28]} Rxa2 {[%emt 0:00:26]} 28. Rxb6 {[%emt 0:00:07]} Rxa7 {[%emt 0:00:07]} 29. Rfb1 {[%emt 0:01:01] Weighted Error Value: White=0.16 (very precise) /Black=0.19 (very precise) .  Mistake:       	White=2     	Black=2      Inaccurate:     	White=1     	Black=4      OK:         	White=11    	Black=9} 1/2-1/2

[Event "Sardinia World Festival-A 2024"]
[Site "Orosei"]
[Date "2024.04.30"]
[Round "5.30"]
[White "Atanasov, Anthony"]
[Black "Krishnan, Ritvik"]
[Result "0-1"]
[ECO "D02"]
[WhiteElo "2407"]
[BlackElo "2277"]
[Annotator "RC"]
[PlyCount "102"]
[EventDate "2024.04.26"]
[EventType "swiss"]
[EventCountry "ITA"]
[SourceTitle "playchess.com"]
[Source "ChessBase"]
[SourceQuality "1"]
[TimeControl "40/5400+30:1800+30"]

1. d4 {[%emt 0:00:02]} Nf6 {[%emt 0:00:04]} 2. Nf3 {[%emt 0:00:06]} d5 {[%emt 0:00:13]} 3. c3 {[%emt 0:00:05]} e6 {[%emt 0:00:15]} 4. Bf4 {[%emt 0:00:07]} c5 {[%emt 0:00:03]} 5. e3 {[%emt 0:00:09]} Nc6 {[%emt 0:00:03]} 6. Nbd2 {[%emt 0:00:38]} cxd4 {[%emt 0:00:06]} 7. exd4 {[%emt 0:00:05]} Nh5 {[%emt 0:00:04]} 8. Bg5 {[%emt 0:05:32]} f6 {[%emt 0:01:02]} 9. Bh4 {[%emt 0:01:38]} Nf4 {[%emt 0:07:51]} 10. Bg3 {[%emt 0:13:03]} Bd6 {[%emt 0:01:17]} 11. Bxf4 {[%emt 0:00:03]} Bxf4 {[%emt 0:00:02]} 12. Bb5 {[%emt 0:00:41]} O-O {[%emt 0:01:04]} 13. O-O {[%emt 0:03:39]} a6 {[%emt 0:02:32]} 14. Bxc6 {[%emt 0:00:37]} bxc6 {[%emt 0:00:02]} 15. Re1 {[%emt 0:05:42]} Qc7 {[%emt 0:03:40]} 16. c4 {[%emt 0:04:40]} Rb8 {[%emt 0:07:18]} 17. Qc2 {[%emt 0:08:25]} Qb6 {[%emt 0:06:52]} 18. Nb3 {[%emt 0:01:05]} Kh8 {[%emt 0:11:58]} 19. g3 {[%emt 0:11:10]} Bh6 {[%emt 0:03:20]} 20. Nc5 {[%emt 0:13:22]} e5 {[%emt 0:12:21]} 21. cxd5 {[%emt 0:04:49]} cxd5 {[%emt 0:08:12]} 22. dxe5 {[%emt 0:00:32]} Bg4 {[%emt 0:01:16]} 23. Nd4 {[%emt 0:13:51]} Rbc8 {[%emt 0:02:46]} 24. Ndb3 {[%emt 0:00:41]} fxe5 {[%emt 0:00:55]} 25. Rxe5 {[%emt 0:00:17]} Qf6 {[%emt 0:05:25]} 26. f4 {[%emt 0:06:11]} Bxf4 {[%emt 0:02:48]} 27. gxf4 {[%emt 0:00:07]} Qxf4 {[%emt 0:00:17]} 28. Rae1 {[%emt 0:02:08]} Rc6 {[%emt 0:06:52]} 29. Nd3 {[%emt 0:01:11]} Qf3 {[%emt 0:03:50]} 30. Nd4 {[%emt 0:04:00]} Rxc2 {[%emt 0:02:33]} 31. Nxf3 {[%emt 0:00:01]} Bxf3 {[%emt 0:00:02]} 32. Rf5 {[%emt 0:00:21]} Kg8 {[%emt 0:00:13]} 33. Rxf8+ {[%emt 0:00:46]} Kxf8 {[%emt 0:00:02]} 34. Nf4 {[%emt 0:00:56]} Be4 {[%emt 0:02:49]} 35. Re2 {[%emt 0:00:03]} Rc1+ {[%emt 0:01:18]} 36. Kf2 {[%emt 0:00:01]} Kf7 {[%emt 0:02:57]} 37. Rd2 {[%emt 0:00:19]} Rh1 {[%emt 0:01:36]} 38. Kg3 {[%emt 0:01:38]} g5 {[%emt 0:01:57]} 39. Ne2 {[%emt 0:00:12]} Kf6 {[%emt 0:01:22]} 40. b4 {[%emt 0:01:05]} Ke5 {[%emt 0:02:17]} 41. a4 {[%emt 0:03:22]} Rb1 {[%emt 0:03:46]} 42. b5 {[%emt 0:05:54]} axb5 {[%emt 0:01:20]} 43. axb5 {[%emt 0:00:02]} Rxb5 {[%emt 0:02:40]} 44. Kg4 {[%emt 0:00:17]} h6 {[%emt 0:01:29]} 45. Nd4 {[%emt 0:02:02]} Rb6 {[%emt 0:00:37]} 46. h3 {[%emt 0:01:22]} Ra6 {[%emt 0:02:09]} 47. Rd1 {[%emt 0:00:42]} Ra4 {[%emt 0:01:52]} 48. Nc6+ {[%emt 0:00:17]} Kd6 {[%emt 0:00:22]} 49. Nd4 {[%emt 0:00:02]} Bc2 {[%emt 0:01:06]} 50. Rd2 {[%emt 0:00:07]} Ke5 {[%emt 0:00:13]} 51. Re2+ {[%emt 0:00:36]} Kxd4 {[%emt 0:00:28]} 0-1